bitfinex-derivatives/quotes_SOLF0:USTF0_20251216
["timestamp","ask_amount","ask_price","bid_price","bid_amount"]
[1765881426198,0.05055244,127.08,127.07,3.29]
[1765881428393,3.12055244,127.08,127.06,3.34150519]
[1765881429792,0.05055244,127.08,127.06,3.34150519]
[1765881431198,0.05055244,127.08,127.07,3.29]
[1765881431993,10.20425244,127.08,127.06,3.34150519]
[1765881432296,0.05055244,127.08,127.06,3.34150519]
[1765881432598,0.05055244,127.08,127.06,10.42620519]
[1765881432789,0.05055244,127.08,127.07,3.29]
[1765881433992,3.12055244,127.08,127.06,3.34150519]
[1765881434194,0.05055244,127.08,127.06,3.34150519]
[1765881434792,3.12055244,127.08,127.06,0.05150519]
[1765881434999,3.12055244,127.08,127.06,3.34150519]
[1765881436085,3.12055244,127.08,127.06,0.05150519]
[1765881436496,10.1542,127.07,127.06,0.05150519]
[1765881437484,3.07,127.05,127.02,3.29]
[1765881437888,10.1552,127.06,127.02,3.29]
[1765881438586,0.05088913,127.05,127.03,3.3429523]
[1765881440096,10.20628913,127.05,127.03,3.3429523]
[1765881440296,10.20628913,127.05,127.03,0.0529523]
[1765881440602,3.07,127.04,127.03,0.0529523]
[1765881440998,0.05088913,127.05,127.03,0.0529523]
[1765881441199,3.12088913,127.05,127.03,0.0529523]
[1765881442094,3.07,127.04,127.03,0.0529523]
[1765881442601,10.1559,127.04,127.03,0.0529523]
[1765881445111,3.07,127.01,126.99,3.29]
[1765881445410,3.07,127.01,126.96,3.29]
[1765881445793,10.1582,127.0,126.97,3.29]
[1765881446202,10.21748306,127.0,126.97,3.34311125]
[1765881447408,3.07,126.99,126.97,3.34311125]
[1765881447797,3.07,126.99,126.97,0.05311125]
[1765881448809,3.07,126.99,126.97,3.34311125]
[1765881449009,0.05928306,127.0,126.97,3.34311125]
[1765881449397,0.05928306,127.0,126.99,3.29]
[1765881449799,0.05928306,127.0,126.99,10.3787]
[1765881452913,0.05928306,127.0,126.99,3.29]
[1765881457111,0.05928306,127.0,126.98,10.4087]
[1765881457505,3.34928306,127.0,126.98,10.4087]
[1765881457707,0.05928306,127.0,126.98,10.4087]
[1765881458412,0.05928306,127.0,126.99,3.32]
[1765881464716,0.05928306,127.0,126.99,10.4087]
[1765881466202,10.3764,127.04,127.01,10.4075]
[1765881466408,3.29,127.05,127.02,3.32]
[1765881467309,10.42645616,127.05,127.02,3.37613143]
[1765881467506,3.29,127.04,127.02,3.37613143]
[1765881468817,10.3759,127.04,127.02,3.37613143]
[1765881469617,3.29,127.04,127.02,3.37613143]
[1765881471039,10.3759,127.04,127.02,3.37613143]
[1765881471920,3.29,127.04,127.02,3.37613143]
[1765881473609,10.3761,127.04,127.02,3.37613143]
[1765881479527,3.29,127.04,127.02,3.37613143]
[1765881480432,10.42625616,127.05,127.03,3.32]
[1765881480827,0.05085616,127.05,127.03,3.32]
[1765881481030,0.05085616,127.05,127.04,3.32]
[1765881481534,0.05085616,127.05,127.04,10.4059]
[1765881483238,3.34085616,127.05,127.03,10.4064]
[1765881484136,0.05085616,127.05,127.04,3.13]
[1765881486524,3.24085616,127.05,127.03,10.2164]
[1765881487227,3.24085616,127.05,127.04,3.13]
[1765881487636,0.05085616,127.05,127.04,3.13]
[1765881487837,3.24085616,127.05,127.04,3.13]
[1765881488333,0.05085616,127.05,127.04,3.13]
[1765881488732,0.05085616,127.05,127.04,10.2159]
[1765881488941,2.61720958,127.14,127.08,3.13]
[1765881489136,124.86581905,127.18,127.08,3.13]
[1765881489137,7.35786176,127.22,127.15,3.13]
[1765881489325,110.0423,127.26,127.18,3.13]
[1765881489528,3.19,127.26,127.25,1.91621897]
[1765881489723,2.48,127.23,127.15,3.13]
[1765881490039,0.04542799,127.2,127.18,3.1880317]
[1765881491035,0.04542799,127.2,127.19,3.13]
[1765881492925,0.04542799,127.2,127.18,5.80524128]
[1765881493641,0.04542799,127.2,127.18,3.1880317]
[1765881493938,2.43,127.16,127.12,3.13]
[1765881494139,2.61720958,127.15,127.12,3.13]
[1765881495035,2.67513171,127.15,127.12,3.1837891]
[1765881496436,9.75503171,127.15,127.12,3.1837891]
[1765881496646,2.43,127.14,127.12,0.0537891]
[1765881497438,2.67513171,127.15,127.12,3.1837891]
[1765881497836,0.05792213,127.15,127.12,3.1837891]
[1765881502642,0.05792213,127.15,127.12,10.2650891]
[1765881502849,0.05792213,127.15,127.13,3.13]
[1765881506754,0.05792213,127.15,127.13,10.2108]
[1765881506936,0.05792213,127.15,127.14,3.13]
[1765881510549,9.5074,127.2,127.15,3.13]
[1765881510550,71.88720958,127.2,127.15,3.13]
[1765881511440,9.55303756,127.19,127.16,3.18586907]
[1765881511943,0.04553756,127.19,127.16,3.18586907]
[1765881513057,0.04553756,127.19,127.16,10.26496907]
[1765881513251,0.04553756,127.19,127.17,3.13]
[1765881513651,0.04553756,127.19,127.18,10.1681]
[1765881514453,5.07720958,127.24,127.2,3.19]
[1765881514653,473.46690383,127.31,127.2,3.19]
[1765881514654,7.074,127.26,127.2,3.19]
[1765881514847,2.46,127.26,127.21,3.19]
[1765881515049,2.61720958,127.27,127.21,3.19]
[1765881515350,5.07720958,127.27,127.22,3.19]
[1765881515544,5.07720958,127.27,127.24,3.19]
[1765881516251,2.46,127.26,127.24,3.19]
[1765881516449,2.61720958,127.25,127.23,3.24205598]
[1765881516749,2.46,127.27,127.23,3.24205598]
[1765881516947,5.07720958,127.26,127.23,3.24205598]
[1765881519054,12.15110958,127.26,127.23,3.24205598]
[1765881519456,5.07720958,127.26,127.23,3.24205598]
[1765881519761,2.46,127.26,127.23,3.24205598]
[1765881521557,9.5337,127.26,127.23,3.24205598]
[1765881522961,2.46,127.26,127.23,3.24205598]
[1765881523564,2.46,127.26,127.23,10.31735598]
[1765881524046,2.61720958,127.27,127.24,3.19]
[1765881524754,5.07720958,127.27,127.24,3.19]
[1765881524951,2.61720958,127.27,127.25,3.19]
[1765881525155,2.46,127.29,127.25,3.19]
[1765881525156,2.46,127.28,127.25,3.19]
[1765881525461,2.46,127.28,127.25,3.24272481]
[1765881526363,2.46,127.25,127.19,3.19]
[1765881526660,2.61720958,127.24,127.2,3.19]
[1765881527262,0.05272481,127.23,127.22,10.2659]
[1765881528751,0.00272481,127.23,127.22,10.2659]
[1765881530764,2.51,127.28,127.25,3.19]
[1765881531159,2.51,127.3,127.27,3.19]
[1765881531474,2.51,127.31,127.27,3.19]
[1765881531663,2.51,127.31,127.28,3.24712455]
[1765881537771,7.0715,127.3,127.28,3.24712455]
[1765881538680,2.51,127.31,127.28,3.24712455]
[1765881539676,9.581,127.31,127.28,3.24712455]
[1765881541870,66.78,127.32,127.28,3.24712455]
[1765881542071,11.14510184,127.33,127.28,3.24712455]
[1765881542072,2.51,127.33,127.28,3.24712455]
[1765881542479,2.51,127.35,127.3,3.19]
[1765881542679,2.51,127.36,127.32,3.19]
[1765881542873,109.9186,127.4,127.32,3.19]
[1765881542874,6.58480184,127.41,127.33,3.19]
[1765881543073,2.51,127.44,127.4,3.19]
[1765881543271,2.51,127.44,127.43,1.90035347]
[1765881543569,2.5,127.43,127.41,0.05474856]
[1765881543773,2.5,127.43,127.37,3.29]
[1765881543774,2.5,127.41,127.37,3.29]
[1765881544176,2.5,127.39,127.34,3.29]
[1765881544778,2.55474856,127.38,127.35,3.34106391]
[1765881544980,9.62184856,127.38,127.35,0.05106391]
[1765881545182,9.62184856,127.38,127.35,3.34106391]
[1765881545573,2.55474856,127.38,127.35,3.34106391]
[1765881547781,0.05474856,127.38,127.35,3.34106391]
[1765881548670,0.00474856,127.38,127.35,3.34106391]
[1765881548874,118.30898284,127.44,127.38,3.29]
[1765881548875,2.5,127.44,127.38,3.29]
[1765881549287,180.51728788,127.46,127.38,3.29]
[1765881549288,10.95298788,127.46,127.38,3.29]
[1765881549481,10.95298788,127.46,127.4,3.29]
[1765881549680,3.88998788,127.46,127.4,3.29]
[1765881549879,6.43998788,127.46,127.42,3.34399357]
[1765881550481,109.8752,127.45,127.42,3.34399357]
[1765881551676,7.064,127.44,127.42,3.34399357]
[1765881551877,119.4938,127.44,127.42,0.05399357]
[1765881553885,116.30328788,127.46,127.42,3.34399357]
[1765881554086,3.88998788,127.46,127.42,3.34399357]
[1765881554386,2.02804565,127.46,127.42,3.34399357]
[1765881554597,2.55,127.51,127.44,3.29]
[1765881554775,66.74,127.54,127.49,3.29]
[1765881555083,109.7791,127.56,127.49,3.29]
[1765881555285,109.7752,127.57,127.51,3.29]
[1765881555483,3.14,127.56,127.53,0.05960861]
[1765881555679,3.14,127.56,127.53,3.34960861]
[1765881555877,179.631,127.59,127.53,3.34960861]
[1765881556088,66.74,127.61,127.53,3.34960861]
[1765881556382,3.14,127.62,127.57,3.29]
[1765881556790,3.14,127.6,127.56,3.34465892]
[1765881557088,109.7231,127.63,127.56,3.34465892]
[1765881557388,109.6885,127.67,127.57,3.29]
[1765881557583,109.6758,127.68,127.6,3.29]
[1765881557782,112.8088,127.69,127.63,0.05198203]
[1765881557986,112.8079,127.69,127.68,1.86942442]
[1765881558179,112.8079,127.69,127.63,3.29]
[1765881558380,3.14,127.68,127.67,0.05296119]
[1765881558685,176.3844,127.7,127.67,0.05296119]
[1765881558686,69.86,127.7,127.67,0.05296119]
[1765881559084,109.6321,127.73,127.67,0.05296119]
[1765881559085,112.7721,127.73,127.67,0.05296119]
[1765881559395,3.14,127.72,127.68,3.29]
[1765881559685,3.14,127.71,127.67,0.05296119]
[1765881559881,66.7,127.73,127.67,3.34296119]
[1765881560490,3.14,127.74,127.67,3.34296119]
[1765881560686,69.82,127.77,127.67,3.34296119]
[1765881560888,3.14,127.79,127.76,1.85142149]
[1765881561087,3.14,127.79,127.72,3.29]
[1765881561390,3.14,127.79,127.76,0.05357424]
[1765881562886,3.83974566,127.8,127.76,3.34357424]
[1765881563679,3.83974566,127.8,127.76,0.05357424]
[1765881563680,3.14,127.78,127.76,0.05357424]
[1765881563987,120.9048825,127.79,127.76,0.05357424]
[1765881564185,180.05554566,127.8,127.76,0.05357424]
[1765881564186,70.47974566,127.8,127.76,3.34357424]
[1765881564386,3.83974566,127.8,127.76,3.34357424]
[1765881565087,3.83974566,127.8,127.76,0.05357424]
[1765881565088,116.55474566,127.8,127.76,0.05357424]
[1765881565293,112.7241,127.79,127.76,0.05357424]
[1765881565495,3.14,127.79,127.76,0.05357424]
[1765881565795,6.97974566,127.8,127.76,0.05357424]
[1765881565982,3.14,127.77,127.76,0.05357424]
[1765881566181,112.7561,127.75,127.71,3.29]
[1765881566384,112.7734,127.73,127.67,3.29]
[1765881566892,109.6334,127.73,127.67,3.29]
[1765881567189,109.6334,127.73,127.69,0.05243117]
[1765881567190,109.6603,127.7,127.69,0.05243117]
[1765881567389,3.14,127.68,127.64,3.29]
[1765881567591,112.8328,127.66,127.61,3.29]
[1765881567791,109.7104,127.64,127.58,3.29]
[1765881567986,112.842,127.65,127.58,3.29]
[1765881568290,0.05037086,127.63,127.61,3.29]
[1765881568495,66.6,127.69,127.61,3.29]
[1765881568696,109.6777,127.68,127.61,3.29]
[1765881569092,69.74,127.7,127.61,3.29]
[1765881569287,109.6801,127.68,127.61,3.29]
[1765881569484,112.88727478,127.66,127.63,0.05541308]
[1765881570492,179.48727478,127.66,127.63,0.05541308]
[1765881570894,112.8438,127.65,127.63,0.05541308]
[1765881571200,3.14,127.64,127.63,0.05541308]
[1765881571497,3.14,127.64,127.58,3.29]
[1765881571498,3.14,127.62,127.58,3.29]
[1765881571697,3.14,127.62,127.5,3.29]
[1765881572196,109.7538,127.59,127.5,3.29]
[1765881572388,109.7638,127.58,127.5,3.29]
[1765881572590,0.05441851,127.55,127.53,0.04995873]
[1765881573500,0.00441851,127.55,127.53,3.28995873]
[1765881573897,69.67,127.62,127.54,3.24]
[1765881574806,109.7437,127.6,127.54,3.24]
[1765881574998,0.05507325,127.59,127.57,0.04961114]
[1765881575300,3.12507325,127.59,127.57,0.04961114]
[1765881576005,3.07,127.58,127.57,0.04961114]
[1765881576202,112.842,127.57,127.49,3.24]
[1765881576390,112.842,127.57,127.42,3.24]
[1765881576391,112.8602,127.55,127.42,3.24]
[1765881576596,3.07,127.55,127.44,3.24]
[1765881576798,3.07,127.58,127.47,3.24]
[1765881577001,69.67,127.58,127.47,3.24]
[1765881577203,69.67,127.58,127.51,0.05810507]
[1765881577402,0.05378047,127.54,127.51,3.29810507]
[1765881577800,3.12378047,127.54,127.51,0.05810507]
[1765881578108,0.05378047,127.54,127.51,0.05810507]
[1765881578500,0.05378047,127.54,127.51,3.29810507]
[1765881579301,3.07,127.6,127.51,3.29810507]
[1765881579503,3.07,127.6,127.51,3.24]
[1765881579703,119.8695,127.6,127.51,3.24]
[1765881580203,0.05086669,127.57,127.54,0.05886432]
[1765881580397,0.05086669,127.57,127.54,3.29886432]
[1765881580801,0.05086669,127.57,127.54,0.05886432]
[1765881581300,0.05086669,127.57,127.54,3.29886432]
[1765881584592,0.05086669,127.57,127.54,0.05886432]
[1765881584801,3.07,127.56,127.54,0.05886432]
[1765881585412,0.05086669,127.57,127.54,3.29886432]
[1765881587811,3.12086669,127.57,127.54,0.05886432]
[1765881588212,10.17746669,127.57,127.54,0.05886432]
[1765881588407,3.07,127.56,127.54,0.05886432]
[1765881589114,10.1273,127.56,127.54,0.05886432]
[1765881589315,3.07,127.55,127.54,0.05886432]
[1765881589515,3.07,127.55,127.48,3.24]
[1765881589708,14.01549615,127.54,127.48,3.24]
[1765881589901,17.08549615,127.54,127.48,3.24]
[1765881590512,0.05730348,127.52,127.5,0.06011159]
[1765881591700,0.05730348,127.52,127.5,3.30011159]
[1765881592509,0.05730348,127.52,127.5,0.06011159]
[1765881593213,3.12730348,127.52,127.5,0.06011159]
[1765881593607,0.05730348,127.52,127.5,3.30011159]
[1765881595116,10.02689615,127.58,127.5,3.30011159]
[1765881595312,3.07,127.62,127.52,3.24]
[1765881595818,3.07,127.62,127.55,3.24]
[1765881596127,3.07,127.62,127.57,0.05842581]
[1765881596128,112.8034,127.61,127.57,0.05842581]
[1765881596417,10.1254,127.59,127.57,0.05842581]
[1765881596614,3.07,127.58,127.57,0.05842581]
[1765881597716,0.05246476,127.6,127.57,0.05842581]
[1765881597717,3.12246476,127.6,127.57,0.05842581]
[1765881599219,10.17736476,127.6,127.57,0.05842581]
[1765881599423,3.07,127.58,127.5,3.24]
[1765881599622,7.0571,127.56,127.5,3.24]
[1765881599830,6.95689615,127.57,127.47,3.24]
[1765881599831,3.07,127.55,127.47,3.24]
[1765881600121,10.1278,127.55,127.47,3.24]
[1765881600323,3.12423597,127.52,127.5,0.05153326]
[1765881600716,0.05423597,127.52,127.5,3.29153326]
[1765881601424,0.05423597,127.52,127.51,3.24]
[1765881602915,0.05423597,127.52,127.5,0.05153326]
[1765881603218,0.05423597,127.52,127.5,3.29153326]
[1765881604826,0.05423597,127.52,127.51,3.36]
[1765881605730,0.00423597,127.52,127.51,4.92]
[1765881605932,10.30689615,127.63,127.54,3.36]
[1765881606429,3.35,127.62,127.54,3.36]
[1765881606628,7.0544,127.61,127.54,3.36]
[1765881606828,0.0566546,127.59,127.56,0.05872619]
[1765881607617,0.0566546,127.59,127.56,3.41872619]
[1765881607824,0.92548,127.64,127.57,3.36]
[1765881608021,0.92548,127.64,127.6,3.36]
[1765881608219,0.92548,127.64,127.62,3.36]
[1765881608622,0.92548,127.64,127.58,3.36]
[1765881609137,0.92548,127.64,127.6,3.41800454]
[1765881610119,0.92548,127.64,127.61,3.36]
[1765881611931,0.92548,127.64,127.62,3.36]
[1765881612232,0.92548,127.64,127.6,3.41800454]
[1765881612926,3.35,127.63,127.6,0.05800454]
[1765881613723,113.0691,127.63,127.6,0.05800454]
[1765881613919,3.35,127.62,127.6,0.05800454]
[1765881614120,116.67599615,127.63,127.5,3.36]
[1765881614121,3.35,127.58,127.5,3.36]
[1765881614324,3.35,127.58,127.49,66.58]
[1765881614325,3.35,127.57,127.49,66.58]
[1765881614732,3.35,127.57,127.5,3.36]
[1765881614934,3.35,127.57,127.5,10.4201]
[1765881615235,3.35,127.57,127.49,66.58]
[1765881615236,0.04937706,127.55,127.52,3.41037566]
[1765881615427,0.04937706,127.55,127.52,0.0521677]
[1765881615428,3.39937706,127.55,127.52,0.0521677]
[1765881616337,0.04937706,127.55,127.52,0.0521677]
[1765881616834,3.39937706,127.55,127.52,0.0521677]
[1765881617334,0.04937706,127.55,127.52,0.0521677]
[1765881618229,3.39937706,127.55,127.52,0.0521677]
[1765881620040,3.35,127.54,127.46,3.36]
[1765881620630,3.35,127.54,127.47,3.36]
[1765881621042,0.05260293,127.52,127.49,0.05761282]
[1765881621440,0.05260293,127.52,127.49,3.41761282]
[1765881623639,3.40260293,127.52,127.49,0.05761282]
[1765881624548,0.05260293,127.52,127.49,3.41761282]
[1765881626641,0.05260293,127.52,127.49,10.47821282]
[1765881626842,0.05260293,127.52,127.5,3.36]
[1765881627249,404.7318,127.62,127.5,3.36]
[1765881627250,4.27548,127.64,127.56,3.36]
[1765881627946,4.27548,127.64,127.57,113.1273]
[1765881628143,4.27548,127.64,127.57,3.36]
[1765881628344,0.05514635,127.62,127.59,0.05096641]
[1765881629036,3.40514635,127.62,127.59,0.05096641]
[1765881629436,10.45894635,127.62,127.59,0.05096641]
[1765881629646,3.40514635,127.62,127.59,0.05096641]
[1765881630652,0.05514635,127.62,127.59,3.41096641]
[1765881630946,0.05514635,127.62,127.59,10.46616641]
[1765881631147,0.05514635,127.62,127.6,3.36]
[1765881632042,0.05514635,127.62,127.59,0.05096641]
[1765881632245,3.40514635,127.62,127.59,0.05096641]
[1765881632949,3.35,127.6,127.59,0.05096641]
[1765881633450,3.4,127.59,127.53,66.6]
[1765881633751,3.4,127.58,127.51,3.11]
[1765881633954,7.0565,127.57,127.51,3.11]
[1765881634149,10.4565,127.57,127.51,3.11]
[1765881634445,0.05400152,127.55,127.53,0.05809696]
[1765881636551,0.05400152,127.55,127.53,10.17649696]
[1765881637553,0.05400152,127.55,127.53,7.11649696]
[1765881637749,0.05400152,127.55,127.54,3.06]
[1765881637956,0.05400152,127.55,127.53,10.17649696]
[1765881638759,0.05400152,127.55,127.54,3.06]
[1765881639348,0.92548,127.64,127.57,3.06]
[1765881639749,3.25,127.63,127.57,3.06]
[1765881640055,3.25,127.62,127.54,112.851]
[1765881640357,10.3599342,127.59,127.57,0.05633199]
[1765881640555,3.25,127.58,127.57,0.05633199]
[1765881640955,4.81,127.58,127.57,0.05633199]
[1765881641154,4.81,127.58,127.51,76.7193]
[1765881641155,11.866,127.58,127.51,76.7193]
[1765881641451,3.25,127.56,127.48,3.06]
[1765881641655,3.25,127.53,127.45,179.5284]
[1765881641851,3.25,127.53,127.46,3.06]
[1765881642055,0.05322305,127.51,127.48,0.05518865]
[1765881642257,3.30322305,127.51,127.48,0.05518865]
[1765881642759,0.00322305,127.51,127.5,3.06]
[1765881647761,7.0566,127.57,127.49,183.4971]
[1765881647762,3.25,127.59,127.52,112.8676]
[1765881647966,3.25,127.59,127.52,3.06]
[1765881648166,3.25,127.59,127.54,7.058]
[1765881648661,3.25,127.57,127.55,0.05865181]
[1765881648861,10.3069,127.57,127.55,0.05865181]
[1765881649059,0.05764314,127.58,127.55,0.05865181]
[1765881649060,3.25,127.56,127.55,0.05865181]
[1765881649268,0.05764314,127.58,127.55,0.05865181]
[1765881649269,3.30764314,127.58,127.55,0.05865181]
[1765881650566,3.25,127.56,127.55,0.05865181]
[1765881651661,3.30764314,127.58,127.55,0.05865181]
[1765881652362,10.36364314,127.58,127.55,0.05865181]
[1765881652866,3.25,127.57,127.55,0.05865181]
[1765881654860,3.25,127.56,127.55,0.05865181]
[1765881655060,3.25,127.56,127.51,7.0597]
[1765881655061,3.25,127.56,127.48,69.68]
[1765881656067,3.29995963,127.53,127.51,0.05189181]
[1765881656257,3.30702174,127.53,127.51,0.05189181]
[1765881656459,3.25,127.52,127.51,0.05189181]
[1765881656657,3.25,127.49,127.4,112.9684]
[1765881656865,3.25,127.49,127.41,112.9654]
[1765881657067,3.25,127.49,127.42,109.8966]
[1765881657261,3.25,127.49,127.42,112.9566]
[1765881657663,3.25,127.49,127.44,7.0635]
[1765881657868,0.05634144,127.47,127.44,3.11512221]
[1765881658061,0.05634144,127.47,127.45,3.06]
[1765881658258,0.05634144,127.47,127.44,3.11512221]
[1765881658676,0.05634144,127.47,127.44,0.05512221]
[1765881658872,0.05634144,127.47,127.44,10.17852221]
[1765881659174,0.05634144,127.47,127.45,3.06]
[1765881659469,0.05634144,127.47,127.44,0.05512221]
[1765881659671,0.05634144,127.47,127.44,3.11512221]
[1765881660466,0.05634144,127.47,127.45,10.1229]
[1765881661262,0.05634144,127.47,127.44,109.93162221]
[1765881661263,3.30634144,127.47,127.44,0.05512221]
[1765881662364,3.30634144,127.47,127.44,3.11512221]
[1765881662365,0.05634144,127.47,127.44,3.11512221]
[1765881662975,0.05634144,127.47,127.46,3.06]
[1765881663170,3.25,127.53,127.47,112.9133]
[1765881663669,3.25,127.53,127.48,113.1235]
[1765881663869,3.25,127.53,127.49,3.28]
[1765881664173,0.05092059,127.52,127.5,3.33985518]
[1765881664365,3.21092059,127.52,127.5,0.05985518]
[1765881664567,0.05092059,127.52,127.5,0.05985518]
[1765881664872,3.21092059,127.52,127.5,0.05985518]
[1765881666076,3.16,127.51,127.5,0.05985518]
[1765881666283,7.11022059,127.52,127.5,0.05985518]
[1765881666284,0.05092059,127.52,127.5,0.05985518]
[1765881666764,0.05092059,127.52,127.5,3.33985518]
[1765881667162,0.05092059,127.52,127.5,0.05985518]
[1765881667574,0.05092059,127.52,127.5,3.33985518]
[1765881668467,0.05092059,127.52,127.5,0.05985518]
[1765881669161,3.21092059,127.52,127.5,0.05985518]
[1765881670474,10.27022059,127.52,127.5,0.05985518]
[1765881670976,3.21092059,127.52,127.5,0.05985518]
[1765881671572,0.05092059,127.52,127.5,0.05985518]
[1765881671777,0.05092059,127.52,127.5,3.33985518]
[1765881671979,3.21092059,127.52,127.5,0.05985518]
[1765881672474,3.21092059,127.52,127.44,66.64]
[1765881672475,3.16,127.51,127.44,66.64]
[1765881672978,3.16,127.5,127.45,3.28]
[1765881673474,0.05060357,127.49,127.47,10.3419]
[1765881673685,0.05461442,127.49,127.47,10.39573498]
[1765881675177,0.00461442,127.49,127.48,10.3414]
[1765881675373,3.16,127.55,127.49,3.28]
[1765881675772,3.16,127.54,127.49,3.28]
[1765881676283,0.05033153,127.53,127.5,0.05952231]
[1765881677080,0.05033153,127.53,127.5,3.33952231]
[1765881677467,0.05033153,127.53,127.5,10.39962231]
[1765881677776,0.05033153,127.53,127.5,3.33952231]
[1765881677977,0.05033153,127.53,127.52,3.28]
[1765881678574,0.05033153,127.53,127.52,10.3392]
[1765881679076,3.16,127.62,127.56,10.3369]
[1765881679871,0.05149281,127.6,127.56,10.3369]
[1765881680183,3.21149281,127.6,127.58,0.05639813]
[1765881681280,10.26629281,127.6,127.58,0.05639813]
[1765881681577,3.16,127.59,127.58,0.05639813]
[1765881682484,3.21149281,127.6,127.58,0.05639813]
[1765881683176,10.26639281,127.6,127.58,0.05639813]
[1765881683379,10.26639281,127.6,127.53,3.28]
[1765881683380,3.16,127.59,127.52,7.0591]
[1765881683771,3.16,127.56,127.5,69.9]
[1765881683979,3.16,127.56,127.5,3.28]
[1765881684482,0.05893402,127.54,127.52,3.33254625]
[1765881685190,0.05893402,127.54,127.52,10.39144625]
[1765881685574,0.05893402,127.54,127.53,3.28]
[1765881685780,0.05893402,127.54,127.52,10.39144625]
[1765881685980,3.21893402,127.54,127.52,0.05254625]
[1765881686489,0.05893402,127.54,127.52,3.33254625]
[1765881687279,0.05893402,127.54,127.52,0.05254625]
[1765881687488,0.05893402,127.54,127.52,3.33254625]
[1765881687680,0.05893402,127.54,127.52,10.39174625]
[1765881687987,134.58128383,127.64,127.56,3.28]
[1765881687988,3.16,127.63,127.56,3.28]
[1765881688185,3.16,127.62,127.58,7.0559]
[1765881688486,0.92548,127.64,127.58,3.28]
[1765881688788,0.05177052,127.62,127.58,3.28]
[1765881688995,0.05177052,127.62,127.6,0.05078524]
[1765881689491,0.05177052,127.62,127.6,3.33078524]
[1765881689680,0.05177052,127.62,127.6,10.38538524]
[1765881689883,3.21177052,127.62,127.6,0.05078524]
[1765881691991,0.05177052,127.62,127.6,0.05078524]
[1765881692593,3.21177052,127.62,127.6,0.05078524]
[1765881693594,0.05177052,127.62,127.6,0.05078524]
[1765881694386,0.05177052,127.62,127.6,10.33548524]
[1765881694782,0.05177052,127.62,127.61,3.23]
[1765881696095,3.3,127.71,127.64,3.23]
[1765881696396,3.3,127.71,127.65,3.23]
[1765881697082,3.3,127.71,127.59,121.04916517]
[1765881697083,3.3,127.68,127.59,112.9768]
[1765881697297,3.3,127.68,127.6,3.23]
[1765881697793,3.3,127.68,127.61,112.9603]
[1765881697997,3.3,127.68,127.61,3.23]
[1765881698191,3.3,127.65,127.63,0.05572973]
[1765881698594,0.0586001,127.66,127.63,3.28572973]
[1765881699097,0.0586001,127.66,127.63,10.33842973]
[1765881699294,0.0586001,127.66,127.63,112.99882973]
[1765881699797,0.0586001,127.66,127.65,3.23]
[1765881700399,10.3472,127.74,127.67,3.23]
[1765881700597,3.3,127.74,127.67,3.23]
[1765881701298,3.3,127.73,127.63,176.3131]
[1765881701489,3.3,127.72,127.67,0.05447178]
[1765881702099,3.3,127.7,127.67,0.05447178]
[1765881703602,109.6512,127.71,127.67,0.05447178]
[1765881703603,3.3,127.68,127.67,0.05447178]
[1765881704003,109.6512,127.71,127.67,0.05447178]
[1765881704004,3.3,127.71,127.67,0.05447178]
[1765881704409,3.3,127.7,127.67,0.05447178]
[1765881705101,66.6,127.72,127.67,0.05447178]
[1765881705102,3.3,127.71,127.67,0.05447178]
[1765881705405,3.3,127.71,127.67,3.28447178]
[1765881705605,66.6,127.72,127.67,3.28447178]
[1765881705804,69.9,127.72,127.67,3.28447178]
[1765881706002,3.3,127.72,127.67,3.28447178]
[1765881706308,10.3467,127.75,127.69,7.0494]
[1765881706507,3.3,127.74,127.71,0.05976481]
[1765881708607,69.9,127.76,127.71,3.28976481]
[1765881709310,3.3,127.75,127.71,3.28976481]
[1765881709700,4.22706,127.78,127.74,3.23]